fUSD/lending_fUSD_20250115
["ID","MTS","AMOUNT","RATE_DAILY","PERIOD"]
[348979603,1736913033966,-500.0,9.999e-05,2]
[348979604,1736913033976,-500.0,9.999e-05,2]
[348979605,1736913033986,-515.15378184,9.999e-05,2]
[348979606,1736913033995,-500.0,9.999e-05,2]
[348979607,1736913034005,-500.0,9.999e-05,2]
[348979608,1736913034014,-500.0,9.999e-05,2]
[348979609,1736913034023,-500.0,9.999e-05,2]
[348979610,1736913034033,-474.0668221,9.999e-05,2]
[348979611,1736913034042,-472.13981721,9.999e-05,2]
[348979612,1736913034052,-500.0,9.999e-05,2]
[348979613,1736913034062,-500.0,9.999e-05,2]
[348979614,1736913034071,-500.0,9.999e-05,2]
[348979615,1736913034080,-500.0,9.999e-05,2]
[348979616,1736913034089,-500.0,9.999e-05,2]
[348979617,1736913034099,-500.0,9.999e-05,2]
[348979618,1736913034108,-500.0,9.999e-05,2]
[348979619,1736913034118,-500.0,9.999e-05,2]
[348979620,1736913034127,-500.0,9.999e-05,2]
[348979621,1736913034137,-500.0,9.999e-05,2]
[348979622,1736913034146,-884.9,9.999e-05,2]
[348979623,1736913034155,-385.45476673,9.999e-05,2]
[348979624,1736913034164,-500.0,9.999e-05,2]
[348979625,1736913034174,-500.0,9.999e-05,2]
[348979626,1736913034183,-500.0,9.999e-05,2]
[348979627,1736913034193,-500.0,9.999e-05,2]
[348979628,1736913034202,-500.0,9.999e-05,2]
[348979629,1736913034211,-517.72969797,9.999e-05,2]
[348979630,1736913034221,-505.99197173,9.999e-05,2]
[348979631,1736913034230,-1232.17,9.999e-05,2]
[348979632,1736913034241,-500.0,9.999e-05,2]
[348979633,1736913034250,-500.0,9.999e-05,2]
[348979634,1736913034260,-485.68045506,9.999e-05,2]
[348979635,1736913034269,-500.0,9.999e-05,2]
[348979636,1736913034279,-500.0,9.999e-05,2]
[348979637,1736913034288,-500.0,9.999e-05,2]
[348979638,1736913034303,-500.0,9.999e-05,2]
[348979639,1736913034312,-500.0,9.999e-05,2]
[348979640,1736913034322,-500.0,9.999e-05,2]
[348979641,1736913034332,-500.0,9.999e-05,2]
[348979642,1736913034341,-519.62973907,9.999e-05,2]
[348979643,1736913034350,-500.0,9.999e-05,2]
[348979644,1736913034359,-500.0,9.999e-05,2]
[348979645,1736913034369,-507.43429856,9.999e-05,2]
[348979646,1736913034386,-500.0,9.999e-05,2]
[348979647,1736913034396,-500.0,9.999e-05,2]
[348979648,1736913034414,-500.0,9.999e-05,2]
[348979649,1736913034427,-500.0,9.999e-05,2]
[348979650,1736913034437,-500.0,9.999e-05,2]
[348979651,1736913034447,-500.0,9.999e-05,2]
[348979652,1736913034457,-500.0,9.999e-05,2]
[348979653,1736913034467,-500.0,9.999e-05,2]
[348979654,1736913034476,-500.0,9.999e-05,2]
[348979655,1736913034486,-500.0,9.999e-05,2]
[348979656,1736913034497,-500.0,9.999e-05,2]
[348979657,1736913034506,-500.0,9.999e-05,2]
[348979658,1736913034516,-500.0,9.999e-05,2]
[348979659,1736913034526,-500.0,9.999e-05,2]
[348979660,1736913034536,-500.0,9.999e-05,2]
[348979661,1736913034547,-500.0,9.999e-05,2]
[348979662,1736913034557,-423.58499604,9.999e-05,2]
[348979663,1736913034567,-500.0,9.999e-05,2]
[348979664,1736913034577,-500.0,9.999e-05,2]
[348979665,1736913034587,-508.67223874,9.999e-05,2]
[348979666,1736913034596,-838.93,9.999e-05,2]
[348979667,1736913034606,-500.0,9.999e-05,2]
[348979668,1736913034615,-500.0,9.999e-05,2]
[348979669,1736913034626,-500.0,9.999e-05,2]
[348979670,1736913034636,-500.0,9.999e-05,2]
[348979671,1736913034646,-500.0,9.999e-05,2]
[348979672,1736913034656,-500.0,9.999e-05,2]
[348979673,1736913034666,-500.0,9.999e-05,2]
[348979674,1736913034677,-500.0,9.999e-05,2]
[348979675,1736913034687,-500.0,9.999e-05,2]
[348979676,1736913034700,-500.0,9.999e-05,2]
[348979677,1736913034710,-500.0,9.999e-05,2]
[348979678,1736913034720,-500.0,9.999e-05,2]
[348979679,1736913034731,-507.37739327,9.999e-05,2]
[348979680,1736913034742,-700.09,9.999e-05,2]
[348979681,1736913034753,-500.0,9.999e-05,2]
[348979682,1736913034763,-500.0,9.999e-05,2]
[348979683,1736913034772,-500.0,9.999e-05,2]
[348979684,1736913034783,-579.15,9.999e-05,2]
[348979685,1736913034793,-500.0,9.999e-05,2]
[348979686,1736913034803,-500.0,9.999e-05,2]
[348979687,1736913034812,-500.0,9.999e-05,2]
[348979688,1736913034823,-500.0,9.999e-05,2]
[348979689,1736913034833,-500.0,9.999e-05,2]
[348979690,1736913034842,-500.0,9.999e-05,2]
[348979691,1736913034852,-154.78921568,9.999e-05,2]
[348979692,1736913034861,-500.0,9.999e-05,2]
[348979693,1736913034872,-500.0,9.999e-05,2]
[348979694,1736913034882,-500.0,9.999e-05,2]
[348979695,1736913034892,-500.0,9.999e-05,2]
[348979696,1736913034904,-500.0,9.999e-05,2]
[348979697,1736913034914,-500.0,9.999e-05,2]
[348979698,1736913034925,-500.0,9.999e-05,2]
[348979699,1736913034936,-500.0,9.999e-05,2]
[348979700,1736913034946,-500.0,9.999e-05,2]
[348979701,1736913034955,-500.0,9.999e-05,2]
[348979702,1736913034965,-500.0,9.999e-05,2]
[348979703,1736913034975,-500.0,9.999e-05,2]
[348979704,1736913034985,-500.0,9.999e-05,2]
[348979705,1736913034994,-500.0,9.999e-05,2]
[348979706,1736913035003,-500.0,9.999e-05,2]
[348979707,1736913035013,-500.0,9.999e-05,2]
[348979708,1736913035022,-500.0,9.999e-05,2]
[348979709,1736913035032,-1288.48,9.999e-05,2]
[348979710,1736913035042,-500.0,9.999e-05,2]
[348979711,1736913035052,-500.0,9.999e-05,2]
[348979712,1736913035062,-500.0,9.999e-05,2]
[348979713,1736913035072,-500.0,9.999e-05,2]
[348979714,1736913035082,-309.99666044,9.999e-05,2]
[348979715,1736913035091,-500.0,9.999e-05,2]
[348979716,1736913035100,-376.91452913,9.999e-05,2]
[348979717,1736913035109,-500.0,9.999e-05,2]
[348979718,1736913035118,-500.0,9.999e-05,2]
[348979719,1736913035128,-500.0,9.999e-05,2]
[348979720,1736913035138,-500.0,9.999e-05,2]
[348979721,1736913035148,-500.0,9.999e-05,2]
[348979722,1736913035158,-500.0,9.999e-05,2]
[348979723,1736913035167,-500.0,9.999e-05,2]
[348979724,1736913035177,-500.0,9.999e-05,2]
[348979725,1736913035187,-500.0,9.999e-05,2]
[348979726,1736913035196,-500.0,9.999e-05,2]
[348979727,1736913035206,-500.0,9.999e-05,2]
[348979728,1736913035216,-500.0,9.999e-05,2]
[348979729,1736913035226,-500.0,9.999e-05,2]
[348979730,1736913035235,-500.0,9.999e-05,2]
[348979731,1736913035245,-500.0,9.999e-05,2]
[348979732,1736913035254,-506.1973268,9.999e-05,2]
[348979733,1736913035263,-500.0,9.999e-05,2]
[348979734,1736913035273,-500.0,9.999e-05,2]
[348979735,1736913035283,-524.55120811,9.999e-05,2]
[348979736,1736913035295,-500.0,9.999e-05,2]
[348979737,1736913035305,-500.0,9.999e-05,2]
[348979738,1736913035317,-500.0,9.999e-05,2]
[348979739,1736913035333,-682.12,9.999e-05,2]
[348979740,1736913035343,-500.0,9.999e-05,2]
[348979741,1736913035353,-500.0,9.999e-05,2]
[348979742,1736913035362,-1179.81,9.999e-05,2]
[348979743,1736913035373,-500.0,9.999e-05,2]
[348979744,1736913035382,-500.0,9.999e-05,2]
[348979745,1736913035392,-644.27,9.999e-05,2]
[348979746,1736913035401,-500.0,9.999e-05,2]
[348979747,1736913035412,-500.0,9.999e-05,2]
[348979748,1736913035423,-645.5549098,9.999e-05,2]
[348979749,1736913035433,-500.0,9.999e-05,2]
[348979750,1736913035442,-500.0,9.999e-05,2]
[348979751,1736913035451,-500.0,9.999e-05,2]
[348979752,1736913035461,-500.0,9.999e-05,2]
[348979753,1736913035471,-500.0,9.999e-05,2]
[348979754,1736913035480,-641.5,9.999e-05,2]
[348979755,1736913035490,-500.0,9.999e-05,2]
[348979756,1736913035500,-1368.86,9.999e-05,2]
[348979757,1736913035509,-500.0,9.999e-05,2]
[348979758,1736913035519,-500.0,9.999e-05,2]
[348979759,1736913035528,-500.0,9.999e-05,2]
[348979760,1736913035537,-500.0,9.999e-05,2]
[348979761,1736913035547,-500.0,9.999e-05,2]
[348979762,1736913035557,-500.0,9.999e-05,2]
[348979763,1736913035566,-500.0,9.999e-05,2]
[348979764,1736913035576,-500.0,9.999e-05,2]
[348979765,1736913035586,-526.07231667,9.999e-05,2]
[348979766,1736913035595,-608.5,9.999e-05,2]
[348979767,1736913035604,-500.0,9.999e-05,2]
[348979768,1736913035614,-500.0,9.999e-05,2]
[348979769,1736913035624,-500.0,9.999e-05,2]
[348979770,1736913035635,-500.0,9.999e-05,2]
[348979771,1736913035645,-633.29102945,9.999e-05,2]
[348979772,1736913035655,-500.0,9.999e-05,2]
[348979773,1736913035664,-600.00778316,9.999e-05,2]
[348979774,1736913035673,-500.0,9.999e-05,2]
[348979775,1736913035682,-500.0,9.999e-05,2]
[348979776,1736913035694,-58686.41633849,0.0001,2]
[348979777,1736913035711,-4200.01810037,0.0001,2]
[348979778,1736913035722,-16767.80977522,0.0001,2]
[348979779,1736913035734,-500.0,0.0001,2]
[348979780,1736913035746,-1909.07707931,0.0001,2]
[348979781,1736913035756,-1716.85,0.0001,2]
[348979782,1736913035768,-475.550835,0.0001,2]
[348979783,1736913035779,-9339.40848176,0.0001,2]
[348979791,1736913038810,-706.89926257,9.288e-05,2]
[348979793,1736913038819,-2500.0,9.899e-05,2]
[348979795,1736913038830,-500.0,9.999e-05,2]
[348979796,1736913038839,-500.0,9.999e-05,2]
[348979797,1736913038848,-93031.74267882,0.0001,2]
[348979801,1736913040875,-500.0,9.999e-05,2]
[348979802,1736913040885,-500.0,9.999e-05,2]
[348979803,1736913040894,-512.17044595,9.999e-05,2]
[348979804,1736913040904,-394.14689571,0.0001,2]
[348979805,1736913040916,-256.01199996,0.0001,2]
[348979826,1736913043665,-500.0,9.999e-05,2]
[348979827,1736913043675,-375.70659874,9.999e-05,2]
[348979830,1736913043879,-124.29340126,9.999e-05,2]
[348979831,1736913043889,-539.79478462,9.999e-05,2]
[348979832,1736913043899,-500.0,9.999e-05,2]
[348979833,1736913043908,-1899.26053412,0.0001,2]
[348979837,1736913046634,-150.69,9.603e-05,2]
[348979838,1736913046644,-500.0,9.999e-05,2]
[348979839,1736913046654,-53.91079493,9.999e-05,2]
[348979840,1736913046894,-446.08920507,9.999e-05,2]
[348979842,1736913046904,-163862.63100934,0.0001,2]
[348979844,1736913046914,-200.0,0.0001,2]
[348979846,1736913046923,-162.19,0.0001,5]
[348979848,1736913046932,-114941.33312204,0.0001,2]
[348979850,1736913046942,-200.0,0.0001,2]
[348979852,1736913046951,-500.0,0.0001,2]
[348979854,1736913046960,-560.70167751,0.0001,2]
[348979856,1736913046969,-639.71873727,0.0001,2]
[348979858,1736913046978,-3000.0,0.0001,2]
[348979859,1736913046987,-400.0,0.0001,3]
[348979861,1736913046997,-201.26408204,0.0001,2]
[348979863,1736913047006,-7923.0,0.00010068,2]
[348979865,1736913047015,-200.0,0.000101,2]
[348979867,1736913047024,-156.46,0.00010137,2]
[348979869,1736913047035,-182.82,0.00010137,2]
[348979871,1736913047044,-598.36,0.00010137,2]
[348979873,1736913047053,-328.9,0.00010144,2]
[348979875,1736913047063,-367.55410755,0.00010164,4]
[348979876,1736913047072,-200.0,0.00010201,2]
[348979878,1736913047082,-713.88,0.0001022,2]
[348979880,1736913047091,-500.0,0.00010271,2]
[348979882,1736913047101,-500.0,0.00010271,2]
[348979884,1736913047110,-500.0,0.00010271,2]
[348979886,1736913047119,-500.0,0.00010271,2]
[348979888,1736913047128,-500.0,0.00010271,2]
[348979890,1736913047137,-1000.0,0.00010271,2]
[348979892,1736913047146,-500.0,0.00010271,2]
[348979893,1736913047156,-500.0,0.00010271,2]
[348979895,1736913047165,-500.0,0.00010271,2]
[348979897,1736913047174,-500.0,0.00010271,2]
[348979898,1736913047183,-176.758972,0.00010273,2]
[348979900,1736913047192,-185.722918,0.00010273,2]
[348979902,1736913047201,-500.0,0.00010273,2]
[348979903,1736913047211,-500.0,0.00010273,2]
[348979905,1736913047220,-533.0,0.00010273,2]
[348979907,1736913047230,-510.79,0.00010273,2]
[348979908,1736913047240,-500.0,0.00010273,2]
[348979910,1736913047249,-500.0,0.00010273,2]
[348979912,1736913047258,-500.0,0.00010273,2]
[348979914,1736913047267,-500.0,0.00010273,2]
[348979916,1736913047276,-514.48228602,0.00010273,2]
[348979917,1736913047285,-500.0,0.00010273,2]
[348979919,1736913047294,-500.0,0.00010273,2]
[348979921,1736913047303,-500.0,0.00010273,2]
[348979923,1736913047312,-500.0,0.00010273,2]
[348979925,1736913047321,-500.0,0.00010273,2]
[348979926,1736913047330,-500.0,0.00010273,2]
[348979928,1736913047341,-500.0,0.00010273,2]
[348979930,1736913047350,-500.0,0.00010273,2]
[348979932,1736913047359,-500.0,0.00010273,2]
[348979934,1736913047368,-199.59,0.00010273,2]
[348979935,1736913047377,-500.0,0.00010273,2]
[348979937,1736913047386,-500.0,0.00010273,2]
[348979939,1736913047395,-500.0,0.00010273,2]
[348979941,1736913047404,-500.0,0.00010273,2]
[348979942,1736913047413,-500.0,0.00010273,2]
[348979944,1736913047423,-500.0,0.00010273,2]
[348979946,1736913047432,-500.0,0.00010273,2]
[348979948,1736913047441,-500.0,0.00010273,2]
[348979950,1736913047451,-500.0,0.00010273,2]
[348979952,1736913047460,-500.0,0.00010273,2]
[348979954,1736913047470,-500.0,0.00010273,2]
[348979955,1736913047479,-284.1751774,0.00010273,2]
[348979957,1736913047489,-294.8802638,0.00010273,2]
[348979959,1736913047498,-500.0,0.00010273,2]
[348979961,1736913047508,-500.0,0.00010273,2]
[348979963,1736913047518,-500.0,0.00010273,2]
[348979965,1736913047529,-559.32569678,0.00010273,2]
[348979967,1736913047538,-500.0,0.00010273,2]
[348979969,1736913047547,-500.0,0.00010273,2]
[348979971,1736913047556,-500.0,0.00010273,2]
[348979972,1736913047565,-500.0,0.00010273,2]
[348979973,1736913047574,-500.0,0.00010273,2]
[348979974,1736913047584,-500.0,0.00010273,2]
[348979975,1736913047593,-526.36652636,0.00010273,2]
[348979976,1736913047603,-500.0,0.00010273,2]
[348979977,1736913047612,-500.0,0.00010273,2]
[348979978,1736913047621,-500.0,0.00010273,2]
[348979979,1736913047631,-500.0,0.00010273,2]
[348979980,1736913047641,-500.0,0.00010273,2]
[348979981,1736913047650,-500.0,0.00010273,2]
[348979982,1736913047659,-500.0,0.00010273,2]
[348979983,1736913047668,-623.97865044,0.00010273,2]
[348979984,1736913047678,-509.55368897,0.00010273,2]
[348979985,1736913047687,-500.0,0.00010273,2]
[348979986,1736913047699,-500.0,0.00010273,2]
[348979987,1736913047710,-500.0,0.00010273,2]
[348979988,1736913047719,-500.0,0.00010273,2]
[348979989,1736913047728,-500.0,0.00010273,2]
[348979990,1736913047741,-500.0,0.00010273,2]
[348979992,1736913047751,-500.0,0.00010273,2]
[348979993,1736913047760,-500.0,0.00010273,2]
[348979995,1736913047770,-500.0,0.00010273,2]
[348979997,1736913047779,-500.0,0.00010273,2]
[348979999,1736913047789,-500.0,0.00010273,2]
[348980001,1736913047798,-500.0,0.00010273,2]
[348980003,1736913047807,-500.0,0.00010273,2]
[348980005,1736913047817,-500.0,0.00010273,2]
[348980007,1736913047827,-506.6757325,0.00010273,2]
[348980009,1736913047837,-500.0,0.00010273,2]
[348980011,1736913047848,-500.0,0.00010273,2]
[348980013,1736913047858,-500.0,0.00010273,2]
[348980015,1736913047868,-500.0,0.00010273,2]
[348980017,1736913047877,-500.0,0.00010273,2]
[348980019,1736913047886,-500.0,0.00010273,2]
[348980021,1736913047896,-500.0,0.00010273,2]
[348980023,1736913047905,-500.0,0.00010273,2]
[348980025,1736913047914,-884.9,0.00010273,2]
[348980027,1736913047923,-500.0,0.00010273,2]
[348980029,1736913047933,-500.0,0.00010273,2]
[348980031,1736913047942,-500.0,0.00010273,2]
[348980033,1736913047951,-500.0,0.00010273,2]
[348980035,1736913047960,-500.0,0.00010273,2]
[348980036,1736913047969,-1232.17,0.00010273,2]
[348980038,1736913047978,-500.0,0.00010273,2]
[348980040,1736913047987,-523.76250973,0.00010273,2]
[348980042,1736913047997,-500.0,0.00010273,2]
[348980044,1736913048006,-500.0,0.00010273,2]
[348980046,1736913048015,-500.0,0.00010273,2]
[348980048,1736913048024,-500.0,0.00010273,2]
[348980050,1736913048034,-500.0,0.00010273,2]
[348980052,1736913048044,-500.0,0.00010273,2]
[348980054,1736913048054,-500.0,0.00010273,2]
[348980056,1736913048063,-500.0,0.00010273,2]
[348980058,1736913048072,-555.28203809,0.00010273,2]
[348980060,1736913048081,-500.0,0.00010273,2]
[348980062,1736913048092,-500.0,0.00010273,2]
[348980064,1736913048101,-500.0,0.00010273,2]
[348980066,1736913048110,-500.0,0.00010273,2]
[348980068,1736913048119,-336.53030257,0.00010273,2]
[348980070,1736913048129,-176.34776774,0.00010273,2]
[348980072,1736913048138,-500.0,0.00010273,2]
[348980074,1736913048147,-500.0,0.00010273,2]
[348980076,1736913048156,-500.0,0.00010273,2]
[348980078,1736913048165,-500.0,0.00010273,2]
[348980080,1736913048174,-500.0,0.00010273,2]
[348980082,1736913048183,-500.0,0.00010273,2]
[348980084,1736913048192,-875.4,0.00010273,2]
[348980086,1736913048202,-838.93,0.00010273,2]
[348980088,1736913048211,-500.0,0.00010273,2]
[348980090,1736913048220,-500.0,0.00010273,2]
[348980092,1736913048229,-500.0,0.00010273,2]
[348980094,1736913048239,-500.0,0.00010273,2]
[348980096,1736913048248,-500.0,0.00010273,2]
[348980098,1736913048257,-500.0,0.00010273,2]
[348980100,1736913048267,-500.0,0.00010273,2]
[348980102,1736913048276,-500.0,0.00010273,2]
[348980104,1736913048285,-500.0,0.00010273,2]
[348980106,1736913048294,-700.09,0.00010273,2]
[348980108,1736913048304,-500.0,0.00010273,2]
[348980110,1736913048314,-500.0,0.00010273,2]
[348980112,1736913048323,-500.0,0.00010273,2]
[348980114,1736913048333,-579.15,0.00010273,2]
[348980116,1736913048342,-500.0,0.00010273,2]
[348980118,1736913048351,-500.0,0.00010273,2]
[348980120,1736913048361,-500.0,0.00010273,2]
[348980122,1736913048370,-500.0,0.00010273,2]
[348980124,1736913048379,-500.0,0.00010273,2]
[348980126,1736913048388,-500.0,0.00010273,2]
[348980128,1736913048397,-500.0,0.00010273,2]
[348980130,1736913048406,-500.0,0.00010273,2]
[348980132,1736913048416,-467.12597061,0.00010273,2]
[348980133,1736913048425,-500.0,0.00010273,2]
[348980135,1736913048434,-500.0,0.00010273,2]
[348980137,1736913048443,-500.0,0.00010273,2]
[348980139,1736913048453,-500.0,0.00010273,2]
[348980141,1736913048462,-500.0,0.00010273,2]
[348980143,1736913048471,-500.0,0.00010273,2]
[348980145,1736913048480,-500.0,0.00010273,2]
[348980147,1736913048490,-500.0,0.00010273,2]
[348980149,1736913048498,-500.0,0.00010273,2]
[348980151,1736913048507,-500.0,0.00010273,2]
[348980153,1736913048517,-500.0,0.00010273,2]
[348980155,1736913048527,-500.0,0.00010273,2]
[348980157,1736913048536,-1288.48,0.00010273,2]
[348980159,1736913048545,-500.0,0.00010273,2]
[348980161,1736913048554,-500.0,0.00010273,2]
[348980163,1736913048564,-500.0,0.00010273,2]
[348980165,1736913048573,-500.0,0.00010273,2]
[348980167,1736913048582,-500.0,0.00010273,2]
[348980169,1736913048592,-419.42062442,0.00010273,2]
[348980171,1736913048602,-500.0,0.00010273,2]
[348980173,1736913048611,-500.0,0.00010273,2]
[348980175,1736913048621,-500.0,0.00010273,2]
[348980177,1736913048631,-500.0,0.00010273,2]
[348980179,1736913048640,-500.0,0.00010273,2]
[348980181,1736913048649,-500.0,0.00010273,2]
[348980183,1736913048659,-500.0,0.00010273,2]
[348980185,1736913048669,-500.0,0.00010273,2]
[348980187,1736913048678,-500.0,0.00010273,2]
[348980189,1736913048687,-500.0,0.00010273,2]
[348980191,1736913048698,-500.0,0.00010273,2]
[348980193,1736913048708,-500.0,0.00010273,2]
[348980195,1736913048718,-500.0,0.00010273,2]
[348980197,1736913048727,-500.0,0.00010273,2]
[348980199,1736913048736,-500.0,0.00010273,2]
[348980200,1736913048746,-500.0,0.00010273,2]
[348980202,1736913048756,-500.0,0.00010273,2]
[348980204,1736913048765,-500.0,0.00010273,2]
[348980207,1736913048777,-682.12,0.00010273,2]
[348980208,1736913048786,-500.0,0.00010273,2]
[348980210,1736913048796,-500.0,0.00010273,2]
[348980212,1736913048805,-1179.81,0.00010273,2]
[348980214,1736913048814,-500.0,0.00010273,2]
[348980216,1736913048824,-644.27,0.00010273,2]
[348980218,1736913048833,-500.0,0.00010273,2]
[348980220,1736913048842,-500.0,0.00010273,2]
[348980223,1736913048853,-500.0,0.00010273,2]
[348980224,1736913048863,-526.37301244,0.00010273,2]
[348980226,1736913048872,-500.0,0.00010273,2]
[348980228,1736913048885,-500.0,0.00010273,2]
[348980230,1736913048894,-588.31964417,0.00010273,2]
[348980232,1736913048903,-500.0,0.00010273,2]
[348980234,1736913048912,-641.5,0.00010273,2]
[348980237,1736913048928,-1368.86,0.00010273,2]
[348980239,1736913048938,-500.0,0.00010273,2]
[348980240,1736913048947,-500.0,0.00010273,2]
[348980242,1736913048957,-500.0,0.00010273,2]
[348980244,1736913048966,-500.0,0.00010273,2]
[348980247,1736913048975,-500.0,0.00010273,2]
[348980248,1736913048985,-500.0,0.00010273,2]
[348980250,1736913048994,-500.0,0.00010273,2]
[348980252,1736913049003,-500.0,0.00010273,2]
[348980254,1736913049012,-500.0,0.00010273,2]
[348980256,1736913049021,-608.5,0.00010273,2]
[348980258,1736913049030,-500.0,0.00010273,2]
[348980260,1736913049040,-523.64829807,0.00010273,2]
[348980262,1736913049049,-500.0,0.00010273,2]
[348980264,1736913049058,-500.0,0.00010273,2]
[348980266,1736913049067,-500.0,0.00010273,2]
[348980268,1736913049077,-500.0,0.00010273,2]
[348980270,1736913049088,-500.0,0.00010273,2]
[348980273,1736913049098,-231.0654198,0.00010273,2]
[348980275,1736913049108,-500.0,0.00010273,2]
[348980277,1736913049118,-500.0,0.00010273,2]
[348980278,1736913049127,-500.0,0.00010273,2]
[348980280,1736913049136,-500.0,0.00010273,2]
[348980282,1736913049146,-536.74802524,0.00010273,2]
[348980284,1736913049155,-381.5918501,0.00010299,2]
[348980286,1736913049165,-200.0,0.00010303,2]
[348980288,1736913049174,-201.26408194,0.00010422,2]
[348980290,1736913049184,-175.72,0.00010425,2]
[348980292,1736913049193,-456.23,0.00010446,2]
[348980294,1736913049203,-169.29,0.00010504,2]
[348980296,1736913049213,-381.5918501,0.00010515,2]
[348980298,1736913049222,-365.16908511,0.00010537,2]
[348980300,1736913049231,-500.0,0.00010545,2]
[348980302,1736913049241,-548.45928456,0.00010545,2]
[348980304,1736913049251,-500.0,0.00010545,2]
[348980306,1736913049261,-500.0,0.00010545,2]
[348980308,1736913049272,-500.0,0.00010545,2]
[348980310,1736913049283,-921.52221133,0.00010545,2]
[348980312,1736913049295,-500.0,0.00010545,2]
[348980314,1736913049306,-236.17265169,0.00010545,2]
[348980316,1736913049317,-500.0,0.00010545,2]
[348980318,1736913049328,-176.758972,0.00010547,2]
[348980320,1736913049344,-185.722918,0.00010547,2]
[348980322,1736913049356,-500.0,0.00010547,2]
[348980324,1736913049366,-533.0,0.00010547,2]
[348980326,1736913049378,-510.79,0.00010547,2]
[348980328,1736913049388,-500.0,0.00010547,2]
[348980330,1736913049399,-529.29,0.00010547,2]
[348980332,1736913049409,-500.0,0.00010547,2]
[348980334,1736913049418,-500.0,0.00010547,2]
[348980336,1736913049427,-511.35885641,0.00010547,2]
[348980337,1736913049437,-500.0,0.00010547,2]
[348980339,1736913049447,-517.88816868,0.00010547,2]
[348980341,1736913049456,-547.37717133,0.00010547,2]
[348980343,1736913049466,-500.0,0.00010547,2]
[348980345,1736913049475,-500.0,0.00010547,2]
[348980347,1736913049485,-582.42388132,0.00010547,2]
[348980349,1736913049494,-513.99429021,0.00010547,2]
[348980351,1736913049504,-500.0,0.00010547,2]
[348980353,1736913049514,-500.0,0.00010547,2]
[348980355,1736913049524,-513.83669752,0.00010547,2]
[348980357,1736913049534,-528.93760682,0.00010547,2]
[348980359,1736913049543,-500.0,0.00010547,2]
[348980361,1736913049553,-521.82311504,0.00010547,2]
[348980363,1736913049563,-519.50182383,0.00010547,2]
[348980365,1736913049572,-647.30927366,0.00010547,2]
[348980366,1736913049582,-532.30853897,0.00010547,2]
[348980367,1736913049597,-500.0,0.00010547,2]
[348980369,1736913049606,-500.0,0.00010547,2]
[348980371,1736913049615,-518.35406801,0.00010547,2]
[348980373,1736913049624,-521.23306598,0.00010547,2]
[348980374,1736913049634,-508.1911224,0.00010547,2]
[348980375,1736913049643,-500.0,0.00010547,2]
[348980376,1736913049653,-586.63821233,0.00010547,2]
[348980377,1736913049818,-47.96178767,0.00010547,2]
[348980378,1736913049828,-405.25194328,0.00010547,2]
[348980379,1736913049842,-94.74805672,0.00010547,2]
[348980380,1736913049852,-500.0,0.00010547,2]
[348980381,1736913049861,-500.0,0.00010547,2]
[348980382,1736913049872,-512.83460019,0.00010547,2]
[348980383,1736913049882,-500.0,0.00010547,2]
[348980384,1736913049895,-500.0,0.00010547,2]
[348980385,1736913049904,-500.0,0.00010547,2]
[348980386,1736913049914,-412.35067682,0.00010547,2]
[348980387,1736913049924,-511.06237661,0.00010547,2]